bitfinex/quotes_ETHUSD_20250123
["timestamp","ask_amount","ask_price","bid_price","bid_amount"]
[1737617892224,0.28980094,3220.0,3219.8,0.55]
[1737617892519,0.28980094,3220.0,3219.8,3.6557]
[1737617893028,3.1053,3220.3,3219.8,0.55]
[1737617893181,0.621051,3220.3,3219.8,0.55]
[1737617893492,3.10521,3220.4,3219.8,0.55]
[1737617894118,3.34404,3220.6,3219.8,0.55]
[1737617894320,3.1051,3220.5,3220.0,0.55]
[1737617894483,0.29021878,3220.3,3220.0,0.55]
[1737617895387,0.29021878,3220.3,3219.9,0.03105324]
[1737617895588,0.29021878,3220.3,3219.9,3.13664324]
[1737617895822,0.29021878,3220.3,3220.0,0.55]
[1737617896022,0.29021878,3220.3,3220.2,4.45789]
[1737617896196,0.239,3220.9,3220.3,0.55]
[1737617896518,3.678144,3220.9,3220.3,0.58104976]
[1737617896725,3.678144,3220.9,3220.3,3.68631976]
[1737617897991,0.573364,3220.9,3220.6,0.55]
[1737617898216,0.29008897,3220.8,3220.6,0.55]
[1737617898984,0.29008897,3220.8,3220.7,1.3525]
[1737617899424,0.29008897,3220.8,3220.7,4.45741]
[1737617899728,3.10433,3221.3,3220.3,0.63283043]
[1737617899729,0.239,3221.1,3220.4,0.8025]
[1737617900428,3.34359,3221.1,3220.5,3.65508]
[1737617900609,3.10434,3221.3,3220.6,0.03104695]
[1737617900975,3.34318,3221.5,3221.0,0.55]
[1737617901107,3.987897,3221.5,3221.0,0.55]
[1737617901823,3.987897,3221.5,3221.0,0.58104397]
[1737617902021,0.883717,3221.5,3221.0,3.65459]
[1737617902353,3.987877,3221.5,3221.0,3.65459]
[1737617902713,6.73214075,3222.2,3221.2,3.65435]
[1737617902714,3.10379,3221.9,3221.2,3.65435]
[1737617902915,3.10379,3221.9,3221.3,0.03104011]
[1737617903408,3.10386,3221.8,3221.3,0.03104011]
[1737617903623,3.10386,3221.8,3221.2,3.65435]
[1737617905551,3.10366,3222.0,3221.4,0.55]
[1737617905740,6.91489207,3222.0,3221.4,0.55]
[1737617906049,3.10366,3222.0,3221.5,0.58104009]
[1737617906260,3.10366,3222.0,3221.7,0.55]
[1737617906439,3.1038,3221.9,3221.7,0.55]
[1737617906644,3.1038,3221.9,3221.4,0.8005]
[1737617906950,3.1038,3221.9,3221.5,0.55]
[1737617909061,3.10389,3221.8,3221.5,0.55]
[1737617909241,3.10395,3221.7,3221.0,3.90505]
[1737617909412,3.10395,3221.7,3221.2,0.55]
[1737617910861,3.10395,3221.7,3221.2,1.174164]
[1737617911159,3.1038,3221.9,3221.4,0.55]
[1737617912762,3.10367,3222.0,3221.6,0.55]
[1737617913358,3.10378,3221.9,3221.6,0.55]
[1737617914058,3.10378,3221.9,3221.3,0.55]
[1737617914219,3.10378,3221.9,3221.3,3.65432]
[1737617915260,3.10387,3221.8,3221.3,3.65432]
[1737617916621,3.10387,3221.8,3220.6,6.10499]
[1737617916622,3.10433,3221.3,3220.8,3.86385]
[1737617916818,3.10424,3221.4,3220.8,3.86385]
[1737617917265,3.10424,3221.4,3220.9,0.55]
[1737617917639,3.10434,3221.3,3220.8,0.7591]
[1737617918045,3.10453,3221.1,3220.8,0.7591]
[1737617918451,3.10441,3221.3,3220.9,0.55]
[1737617918821,3.10444,3221.2,3220.9,0.55]
[1737617919965,3.1043,3221.4,3220.9,0.55]
[1737617920167,3.10443,3221.2,3220.9,0.55]
[1737617920474,3.10435,3221.3,3220.9,0.55]
[1737617920628,3.1043,3221.4,3220.9,0.55]
[1737617921067,3.10434,3221.3,3220.9,0.55]
[1737617923173,3.34316,3221.5,3220.9,3.65468]
[1737617923677,3.10416,3221.5,3220.9,3.68572369]
[1737617924392,3.34297,3221.7,3221.1,0.55]
[1737617924551,3.4694557,3221.6,3221.1,0.55]
[1737617924747,3.10412,3221.6,3221.1,0.55]
[1737617925679,3.10422,3221.5,3220.9,0.55]
[1737617925987,3.10422,3221.5,3220.9,3.65471]
[1737617926483,3.10422,3221.5,3220.9,0.55]
[1737617926785,3.10422,3221.5,3221.0,0.55]
[1737617926989,0.310422,3221.4,3220.8,3.86388]
[1737617927147,3.10424,3221.4,3220.9,0.55]
[1737617927749,3.10398,3221.7,3220.9,0.55]
[1737617927950,3.10413,3221.6,3221.2,0.55]
[1737617928791,3.10398,3221.7,3221.4,0.55]
[1737617929495,3.10418,3221.5,3221.1,1.3105]
[1737617929952,3.10398,3221.7,3221.1,1.3105]
[1737617930152,3.10398,3221.7,3221.1,4.41502]
[1737617930886,3.10398,3221.7,3221.1,1.3105]
[1737617931398,3.34279,3221.9,3221.3,3.65432]
[1737617931551,3.34256,3222.1,3221.3,0.5810401]
[1737617931751,3.10371,3222.0,3221.5,0.55]
[1737617932347,3.10376,3221.9,3221.5,0.55]
[1737617934387,3.34256,3222.1,3221.5,0.55]
[1737617934591,3.676816,3222.1,3221.5,0.55]
[1737617934896,3.10373,3222.0,3221.5,0.55]
[1737617935258,3.676816,3222.1,3221.5,0.55]
[1737617935459,3.10377,3221.9,3221.5,0.55]
[1737617935983,3.34244,3222.3,3221.7,0.55]
[1737617936171,3.10347,3222.2,3221.7,0.55]
[1737617936784,3.10347,3222.2,3221.7,3.65394]
[1737617936959,3.10347,3222.2,3221.7,0.55]
[1737617937567,6.20702,3222.2,3221.7,0.55]
[1737617937902,3.10347,3222.2,3221.7,0.55]
[1737617938105,3.10357,3222.1,3221.7,0.55]
[1737617939519,3.10357,3222.1,3221.5,3.65411]
[1737617940381,3.10357,3222.1,3221.5,0.55]
[1737617940705,3.10357,3222.1,3221.5,1.3105]
[1737617941087,3.10382,3221.9,3221.2,3.8649]
[1737617941605,3.10382,3221.9,3221.3,0.55]
[1737617941786,3.10413,3221.6,3221.2,0.7605]
[1737617942521,0.239,3221.7,3221.3,0.55]
[1737617943085,3.10389,3221.8,3221.3,0.55]
[1737617946347,0.5,3223.7,3221.5,0.55]
[1737617946493,1e-05,3224.0,3223.9,3.10183]
[1737617946693,1e-05,3224.0,3223.9,9.86471928]
[1737617946893,0.8199,3225.4,3223.9,0.8118]
[1737617947150,0.8199,3225.4,3224.0,0.03100784]
[1737617947531,3.19716754,3225.0,3224.2,3.10145]
[1737617947841,0.31971675,3224.9,3224.2,3.10146]
[1737617947996,0.09637754,3225.0,3224.7,3.10097]
[1737617948198,0.09637754,3225.0,3224.8,3.65094]
[1737617948393,0.09637754,3225.0,3224.9,3.65087]
[1737617950143,0.09637754,3225.0,3224.9,0.55]
[1737617950513,0.09637754,3225.0,3224.2,3.10153]
[1737617950714,3.51686429,3225.0,3224.3,3.91321]
[1737617950931,3.51686429,3225.0,3224.4,0.55]
[1737617951130,0.41607429,3225.0,3224.4,0.55]
[1737617951653,3.10113,3224.7,3223.9,3.1018]
[1737617951821,3.10096,3224.8,3223.8,3.10186]
[1737617952025,3.10125,3224.6,3223.8,3.10186]
[1737617952420,3.10125,3224.6,3223.7,0.8118]
[1737617952751,3.411395,3224.5,3223.5,3.10218]
[1737617952910,3.10135,3224.4,3223.5,3.10218]
[1737617953106,0.310125,3224.5,3223.3,0.8118]
[1737617953306,3.10108,3224.7,3224.1,0.55]
[1737617954053,3.10115,3224.7,3223.9,0.55]
[1737617954203,3.10115,3224.7,3224.0,0.55]
[1737617954604,3.05115,3224.7,3224.0,0.55]
[1737617954948,0.8199,3224.9,3224.3,0.55]
[1737617955252,0.40171175,3224.8,3224.3,0.55]
[1737617955921,0.40171175,3224.8,3224.4,0.55]
[1737617957464,3.10088,3224.9,3224.2,0.55]
[1737617957774,3.10088,3224.9,3224.2,3.65153]
[1737617959436,3.10125,3224.6,3223.8,3.9137]
[1737617959783,3.10125,3224.6,3223.9,0.55]
[1737617959959,3.10143,3224.4,3223.8,0.8118]
[1737617960164,3.721698,3224.4,3223.8,0.8118]
[1737617960469,3.721698,3224.4,3223.9,0.55]
[1737617961252,0.620268,3224.4,3223.9,3.65179]
[1737617961432,3.10125,3224.6,3223.9,3.65179]
[1737617961877,3.10125,3224.6,3224.1,0.55]
[1737617962381,3.10097,3224.8,3224.1,0.55]
[1737617963182,3.10116,3224.6,3224.1,0.55]
[1737617963350,3.10135,3224.4,3223.9,0.55]
[1737617963550,0.310135,3224.3,3223.6,3.10205]
[1737617963754,3.411605,3224.3,3223.7,3.10202]
[1737617964377,3.411605,3224.3,3223.8,0.55]
[1737617964679,0.310135,3224.3,3223.8,3.65191]
[1737617964865,0.7509,3224.5,3223.8,3.65191]
[1737617965283,3.10073,3225.1,3224.0,0.55]
[1737617965284,3.10106,3224.7,3224.0,0.55]
[1737617965582,3.10135,3224.4,3224.0,0.55]
[1737617965801,3.10135,3224.4,3223.9,0.55]
[1737617965941,0.310135,3224.3,3223.9,0.55]
[1737617966142,0.310135,3224.3,3223.9,3.65182]
[1737617966464,3.10123,3224.6,3223.9,3.68283616]
[1737617966680,3.10133,3224.5,3223.6,3.10209]
[1737617966981,3.10133,3224.5,3223.8,3.1019]
[1737617967299,3.10123,3224.6,3223.9,3.6518]
[1737617967641,3.1013,3224.5,3223.9,0.55]
[1737617967867,3.1013,3224.5,3223.9,3.65182]
[1737617967868,0.620253,3224.4,3223.9,3.65182]
[1737617968068,0.620253,3224.4,3223.7,0.55]
[1737617968283,3.10122,3224.6,3224.0,0.55]
[1737617968783,3.10122,3224.6,3224.1,0.55]
[1737617969280,3.10113,3224.7,3224.0,3.10173]
[1737617969476,3.10119,3224.6,3224.0,3.10173]
[1737617969784,3.10119,3224.6,3224.1,0.55]
[1737617970003,0.310119,3224.5,3224.1,0.55]
[1737617970188,3.411369,3224.5,3223.7,3.10194]
[1737617970402,3.411369,3224.5,3223.9,3.10183]
[1737617970888,3.10145,3224.3,3223.7,3.10194]
[1737617971264,3.10164,3224.1,3223.8,0.55]
[1737617971499,0.310164,3224.0,3223.5,3.91419]
[1737617971876,3.411954,3224.0,3223.4,3.10231]
[1737617972411,3.411954,3224.0,3223.5,0.55]
[1737617972906,0.310164,3224.0,3223.5,0.55]
[1737617973121,3.411894,3224.0,3223.5,0.55]
[1737617973422,0.4162794,3223.9,3223.5,0.55]
[1737617973619,0.4162794,3223.9,3223.5,3.65221]
[1737617974417,3.10155,3224.2,3223.5,3.65221]
[1737617974895,3.10165,3224.1,3223.5,3.65221]
[1737617975086,3.10176,3224.0,3223.5,0.55]
[1737617975307,3.10194,3223.8,3223.2,3.91449]
[1737617975617,3.102,3223.8,3223.2,0.812]
[1737617975821,0.3102,3223.7,3223.2,0.812]
[1737617976026,0.3102,3223.7,3223.3,0.55]
[1737617977777,0.3102,3223.7,3223.3,3.6524]
[1737617979415,0.3102,3223.7,3223.3,0.55]
[1737617979777,3.8543,3223.8,3223.3,0.55]
[1737617979972,0.38543,3223.7,3223.3,0.55]
[1737617980821,0.38543,3223.7,3222.9,0.7512]
[1737617980822,3.1025,3223.3,3222.9,0.7512]
[1737617981517,3.10251,3223.2,3223.0,0.55]
[1737617981980,3.10267,3223.1,3222.6,0.7512]
[1737617982517,3.10267,3223.1,3222.7,0.55]
[1737617983028,3.85481,3223.2,3222.7,0.55]
[1737617983813,3.10251,3223.2,3222.7,0.55]
[1737617983991,3.10234,3223.4,3222.7,0.58102662]
[1737617984191,3.10234,3223.4,3222.9,0.55]
[1737617984501,3.798778,3223.4,3222.9,0.55]
[1737617984701,3.48746,3223.7,3223.1,1.3793]
[1737617984941,0.38543,3223.7,3223.1,4.48183]
[1737617985131,0.38543,3223.7,3223.3,0.55]
[1737617985644,3.10197,3223.8,3223.3,0.55]
[1737617985932,3.10176,3224.0,3223.4,0.8293]
[1737617986090,3.10176,3224.0,3223.5,0.55]
[1737617986529,3.10183,3223.9,3223.5,0.55]
[1737617986731,3.10193,3223.8,3223.5,0.55]
[1737617987098,3.10185,3223.9,3223.5,0.55]
[1737617988427,3.10194,3223.8,3223.5,0.55]
[1737617989044,3.10203,3223.7,3223.5,0.55]
[1737617989219,3.10203,3223.7,3223.1,3.10254]
[1737617989220,3.10203,3223.7,3223.2,0.55]
[1737617991647,3.10203,3223.7,3223.2,3.65248]
[1737617994245,3.10185,3223.9,3223.4,0.55]
[1737617995453,3.10194,3223.8,3223.4,0.55]
[1737617997366,3.10175,3224.0,3223.4,0.55]
[1737617997662,0.696323,3224.0,3223.4,0.55]
[1737617997870,3.10185,3223.9,3223.4,0.55]
[1737617998457,3.10151,3224.3,3223.8,0.55]
[1737617999069,3.10155,3224.2,3223.6,0.55]
[1737617999361,1.070019,3224.5,3223.6,0.55]
[1737617999362,3.10174,3224.0,3223.6,0.55]
[1737617999570,3.10199,3223.8,3223.6,0.55]
[1737618000168,3.10235,3223.4,3222.8,0.8293]
[1737618000367,3.10235,3223.4,3222.8,3.93213]
[1737618000528,3.10235,3223.4,3222.9,3.65279]
[1737618001653,3.10235,3223.4,3222.9,0.55]
[1737618001941,3.722798,3223.4,3222.9,0.55]
[1737618002340,3.10246,3223.3,3222.9,0.55]
[1737618003264,3.10251,3223.2,3222.9,0.55]
[1737618004566,0.620448,3223.4,3222.9,0.55]
[1737618004567,3.722808,3223.4,3222.9,0.55]
[1737618004872,3.10246,3223.3,3222.9,0.55]
[1737618005067,3.10253,3223.2,3222.9,0.55]
[1737618005229,3.10269,3223.0,3222.5,0.8293]
[1737618005427,3.10291,3222.8,3222.5,0.8293]
[1737618005632,3.10291,3222.8,3222.2,0.8304]
[1737618005856,3.92699,3223.0,3222.2,0.8304]
[1737618006070,0.392699,3222.9,3222.4,0.55]
[1737618006371,3.495499,3222.9,3222.4,0.55]
[1737618006869,3.495499,3222.9,3222.4,3.65324]
[1737618007067,3.10254,3223.2,3222.4,3.65324]
[1737618007264,3.10254,3223.2,3222.4,3.684269]
[1737618007476,3.10271,3223.0,3222.4,3.65324]
[1737618007967,3.1028,3222.9,3222.4,0.55]
[1737618008377,3.1028,3222.9,3222.4,3.65327]
[1737618009257,3.10225,3223.5,3222.7,1.3804]
[1737618009461,3.10232,3223.4,3222.9,0.55]
[1737618011242,3.10225,3223.5,3222.9,3.65276]
[1737618011447,3.10225,3223.5,3222.3,3.10337]
[1737618011745,3.10225,3223.5,3222.9,3.1027]
[1737618011946,0.392655,3223.4,3222.9,3.1027]
[1737618012733,0.392655,3223.4,3222.7,0.03102494]
[1737618012972,3.10257,3223.2,3222.5,3.1031]
[1737618013133,3.1026,3223.1,3222.4,3.72102558]
[1737618013478,3.92707,3223.0,3222.4,0.61779558]
[1737618013819,3.10281,3222.9,3222.5,0.55]
[1737618014575,3.10281,3222.9,3222.4,0.8304]
[1737618014783,0.8243,3223.0,3222.4,3.964679]
[1737618014988,3.1026,3223.1,3222.4,3.964679]
[1737618015468,6.20529,3223.1,3222.4,3.964679]
[1737618015694,3.1026,3223.1,3222.4,3.964679]
[1737618016779,3.1026,3223.1,3222.4,3.93365]
[1737618016985,3.41302,3223.0,3222.4,3.93365]
[1737618017692,3.10288,3222.9,3222.4,0.8304]
[1737618017993,3.10288,3222.9,3222.2,3.10346]
[1737618018206,3.10289,3222.8,3222.2,3.10346]
[1737618018800,3.10299,3222.7,3222.1,0.8304]
[1737618019980,3.10299,3222.7,3222.1,3.93389]
[1737618020304,3.10288,3222.9,3222.1,0.8304]
[1737618020601,3.444174,3222.9,3222.1,0.8304]
[1737618020775,3.10334,3222.4,3222.0,0.6096441]
[1737618021360,3.10275,3223.0,3222.1,0.83063545]
[1737618021567,3.10275,3223.0,3222.3,3.10329]
[1737618021786,0.389315,3222.9,3222.3,3.10329]
[1737618022515,3.10275,3223.0,3222.4,3.10318]
[1737618022667,3.10275,3223.0,3222.4,6.20636]
[1737618022866,3.10275,3223.0,3222.4,3.13420908]
[1737618024003,3.10255,3223.2,3222.5,3.90275]
[1737618024169,3.10262,3223.1,3222.5,3.90275]
[1737618024367,3.10262,3223.1,3222.5,0.7996]
[1737618025305,3.10275,3223.0,3222.5,0.7996]
[1737618025802,3.10275,3223.0,3222.5,3.90276]
[1737618026106,3.10275,3223.0,3222.5,0.7996]
[1737618030806,3.10286,3222.9,3222.3,0.7996]
[1737618031109,3.10296,3222.8,3222.3,0.7996]
[1737618031311,3.10304,3222.7,3222.3,0.7996]
[1737618031897,0.7904,3222.6,3222.0,3.7132341]
[1737618033017,0.7904,3222.6,3222.1,3.10351]
[1737618033196,3.10304,3222.7,3222.1,3.10351]
[1737618033400,3.802666,3222.7,3222.1,3.10351]
[1737618034620,0.699626,3222.7,3222.2,3.10339]
[1737618035639,0.699626,3222.7,3221.9,0.7996]
[1737618035917,3.10337,3222.3,3221.9,0.7996]
[1737618037330,3.10348,3222.2,3221.7,3.90027]
[1737618037533,3.10333,3222.4,3221.8,3.10384]
[1737618037845,6.20669,3222.4,3221.7,3.90027]
[1737618038436,3.1034,3222.3,3221.7,3.90027]
[1737618039007,3.1034,3222.3,3221.8,3.10384]
[1737618040541,3.10318,3222.5,3221.8,3.10384]
[1737618040749,3.10331,3222.4,3221.8,3.10384]
[1737618041947,3.10339,3222.3,3221.8,3.10384]
[1737618043144,3.413498,3222.5,3221.8,3.10384]
[1737618043345,3.413498,3222.5,3221.8,6.2076]
[1737618043550,3.10328,3222.4,3221.8,3.10376]
[1737618045841,0.6516778,3222.3,3221.8,3.10376]
[1737618046751,3.7550578,3222.3,3221.8,3.10376]
[1737618049547,3.7550578,3222.3,3221.9,3.10375]
[1737618049548,0.6516778,3222.3,3221.9,3.10375]
[1737618051650,3.7550478,3222.3,3221.7,3.90026]
[1737618051859,3.7550478,3222.3,3221.8,3.10381]
[1737618052162,3.10337,3222.3,3221.8,3.10381]
[1737618052367,3.10324,3222.5,3221.8,3.10381]
[1737618052952,3.10324,3222.5,3221.8,3.10377]
[1737618053153,3.10324,3222.5,3221.9,3.1037]
[1737618053354,3.89334,3222.8,3222.0,3.10365]
[1737618053559,3.10276,3223.0,3222.4,0.7964]
[1737618053867,3.10276,3223.0,3222.4,3.89964]
[1737618054668,3.10281,3222.9,3222.4,0.7964]
[1737618054870,3.10293,3222.8,3222.4,0.7964]
[1737618055767,3.10293,3222.8,3222.1,3.89987]
[1737618056070,3.10322,3222.5,3222.1,0.7964]
[1737618056773,3.10309,3222.6,3222.1,0.7964]
[1737618057079,3.10334,3222.4,3221.8,3.90018]
[1737618058122,3.10308,3222.6,3221.9,3.10372]
[1737618058542,3.10318,3222.5,3221.9,3.10372]
[1737618059031,3.8349653,3222.5,3221.9,3.10372]
[1737618059231,3.8349653,3222.5,3221.8,0.7964]
[1737618059232,3.10292,3222.8,3221.8,0.82743643]
[1737618059459,3.10292,3222.8,3222.2,3.10346]
[1737618060383,3.10299,3222.7,3222.0,6.20725]
[1737618060673,3.10318,3222.5,3221.8,3.9002]
[1737618060874,3.10306,3222.7,3221.8,0.7964]
[1737618061040,0.310306,3222.6,3222.0,3.10357]
[1737618061246,3.10318,3222.5,3221.9,3.10373]
[1737618062354,3.10318,3222.5,3221.8,3.90023]
[1737618062355,3.10339,3222.3,3221.8,0.7964]
[1737618062562,3.10339,3222.3,3221.8,3.90022]
[1737618063277,0.8013,3222.4,3221.8,3.90022]
[1737618063449,0.390448,3222.3,3221.8,3.90022]
[1737618063659,3.10364,3222.1,3221.5,0.7964]
[1737618063885,3.10375,3222.0,3221.5,0.7964]
[1737618064053,3.10364,3222.1,3221.5,0.7964]
[1737618064254,3.10366,3222.0,3221.5,0.7964]
[1737618064602,0.7752,3221.8,3221.4,3.10415]
[1737618065170,0.7752,3221.8,3221.5,3.10414]
[1737618065699,0.390448,3222.3,3221.9,3.89765]
[1737618068794,0.390448,3222.3,3221.9,0.7939]
[1737618068992,0.390448,3222.3,3221.9,3.89764]
[1737618070660,3.10319,3222.5,3221.9,3.89764]
[1737618072186,3.89943,3222.8,3222.2,3.10345]
[1737618072387,3.10293,3222.8,3222.3,0.7939]
[1737618073401,3.10298,3222.7,3222.3,0.7939]
[1737618073600,3.1031,3222.6,3221.9,6.20744]
[1737618073801,3.1031,3222.6,3222.0,0.7939]
[1737618074309,6.20588,3222.8,3222.1,3.10355]
[1737618074461,3.803168,3222.8,3222.1,3.10355]
[1737618074801,3.10301,3222.7,3222.1,3.10355]
[1737618076299,3.10301,3222.7,3222.2,3.10344]
[1737618078411,3.10301,3222.7,3222.1,3.10355]
[1737618079089,3.10314,3222.6,3222.0,0.7939]
[1737618079411,0.620615,3222.5,3222.0,0.7939]
[1737618079612,3.10314,3222.6,3222.0,3.89749]
[1737618080415,3.10301,3222.7,3222.0,3.89749]
[1737618080618,3.10328,3222.4,3221.8,3.89771]
[1737618081375,3.10328,3222.4,3221.8,0.7939]
[1737618081376,6.20664,3222.4,3221.8,0.7939]
[1737618081580,0.620664,3222.3,3221.8,0.7939]
[1737618081880,3.1034,3222.3,3221.8,0.7939]
[1737618082084,3.10347,3222.2,3221.8,0.7939]
[1737618082724,3.10361,3222.1,3221.8,0.7939]
[1737618083021,3.10389,3221.8,3221.3,0.8245]
[1737618083614,3.10402,3221.7,3221.3,0.8245]
[1737618084125,3.10411,3221.6,3221.3,0.8245]
[1737618084479,3.10414,3221.5,3221.3,0.8245]
[1737618084784,3.10424,3221.4,3221.3,0.8245]
[1737618085151,3.10431,3221.4,3221.2,0.2496]
[1737618085307,3.10433,3221.3,3221.2,0.2496]
[1737618085675,3.91913,3221.3,3221.2,0.2496]
[1737618086290,3.91913,3221.3,3220.2,3.25402853]
[1737618086291,3.1053,3220.3,3220.2,3.25402853]
[1737618086893,3.807829,3220.3,3220.2,3.25402853]
[1737618087481,4.622629,3220.3,3220.2,3.25402853]
[1737618088787,6.10492,3220.7,3219.5,3.65602]
[1737618088788,3.10549,3220.1,3219.5,3.65602]
[1737618089024,3.10549,3220.1,3219.5,3.68707681]
[1737618090360,3.10549,3220.1,3219.6,35.0]
[1737618091355,3.10537,3220.3,3219.6,35.0]
[1737618092466,3.10537,3220.3,3219.6,38.10597]
[1737618093263,3.10543,3220.2,3219.6,38.10597]
[1737618093470,3.10543,3220.2,3219.5,0.55]
[1737618093672,3.10559,3220.0,3219.5,0.55]
[1737618093971,3.10559,3220.0,3219.6,35.0]
[1737618094164,3.10543,3220.2,3219.6,35.0]
[1737618094368,3.10551,3220.1,3219.6,35.0]
[1737618094541,3.10551,3220.1,3219.5,0.55]
[1737618095867,3.10577,3219.9,3219.2,6.10634]
[1737618096466,3.10578,3219.8,3219.1,0.768]
[1737618096662,3.10578,3219.8,3219.1,3.87445]
[1737618097010,3.10597,3219.6,3219.1,0.768]
[1737618097560,3.10607,3219.6,3218.9,0.768]
[1737618097779,3.10616,3219.4,3217.9,0.33634791]
[1737618097985,3.89507,3219.5,3218.6,0.768]
[1737618098287,3.10616,3219.4,3218.9,0.768]
[1737618098458,3.10522,3220.4,3219.6,3.87393]
[1737618098661,3.10547,3220.2,3219.6,0.768]
[1737618099983,3.10544,3220.2,3219.6,0.768]
[1737618100293,3.10537,3220.3,3219.6,3.87394]
[1737618100643,3.10546,3220.2,3219.6,0.768]
[1737618100984,3.805428,3220.2,3219.6,0.768]
[1737618101440,0.699968,3220.2,3219.6,0.768]
[1737618101788,0.55495568,3220.6,3219.8,3.10571]
[1737618102090,3.10484,3220.8,3220.2,0.768]
[1737618102544,3.10484,3220.8,3220.2,3.87339]
[1737618102743,3.10484,3220.8,3220.2,0.768]
[1737618102744,3.10498,3220.7,3220.2,0.768]
[1737618102970,3.10484,3220.8,3220.2,0.768]
[1737618103375,3.10484,3220.8,3220.2,3.87339]
[1737618104299,3.10498,3220.7,3220.2,0.768]
[1737618104467,3.725962,3220.7,3220.2,0.768]
[1737618105104,3.10501,3220.6,3220.2,0.768]
[1737618105465,3.10501,3220.6,3220.0,3.10557]
[1737618105466,0.620982,3220.7,3220.1,0.55]
[1737618105764,3.10493,3220.7,3220.1,3.65541]
[1737618105965,3.10484,3220.8,3220.1,3.65541]
[1737618106498,3.10484,3220.8,3220.2,3.10538]
[1737618106662,3.10484,3220.8,3220.3,0.768]
[1737618108267,3.10484,3220.8,3220.1,3.65547]
[1737618108268,6.20973,3220.8,3220.1,3.65547]
[1737618108787,3.10493,3220.7,3220.1,3.65547]
[1737618111300,3.10493,3220.7,3220.1,0.55]
[1737618111880,3.10493,3220.7,3220.1,3.65546]
[1737618112781,3.10517,3220.5,3220.1,0.55]
[1737618112978,3.10493,3220.7,3220.0,0.768]
[1737618112979,3.1052,3220.4,3220.0,0.768]
[1737618113219,3.415553,3220.6,3220.0,0.768]
[1737618113926,0.310493,3220.6,3220.0,3.87352]
[1737618114139,3.10495,3220.7,3220.0,3.87352]
[1737618114439,3.10475,3220.9,3220.1,3.65544]
[1737618114594,3.10475,3220.9,3220.2,0.768]
[1737618114794,3.10475,3220.9,3220.3,3.10524]
[1737618115607,3.10483,3220.8,3220.2,0.768]
[1737618115939,3.10491,3220.7,3220.2,0.768]
[1737618120503,3.10502,3220.6,3220.2,0.768]
[1737618121014,3.10491,3220.7,3220.2,0.768]
[1737618121843,3.10526,3220.4,3220.2,0.768]
[1737618122013,3.10536,3220.3,3219.7,3.87384]
[1737618122219,0.621062,3220.3,3219.8,3.10576]
[1737618122415,3.10526,3220.4,3219.9,3.10568]
[1737618122943,0.789,3220.6,3219.9,3.10568]
[1737618123114,0.789,3220.6,3220.2,3.10533]
[1737618123318,3.1051,3220.5,3220.0,3.10558]
[1737618123732,3.1051,3220.5,3219.8,3.65578]
[1737618124048,3.1051,3220.5,3219.9,3.10567]
[1737618124202,3.805009,3220.5,3219.9,3.10567]
[1737618125205,0.699909,3220.5,3219.9,3.10567]
[1737618125404,3.1052,3220.4,3219.9,3.10567]
[1737618125634,3.1052,3220.4,3219.8,0.55]
[1737618125833,3.1052,3220.4,3219.8,3.65576]
[1737618126152,3.1052,3220.4,3219.8,6.76152]
[1737618126350,0.789,3220.6,3219.7,0.768]
[1737618126589,3.10542,3220.2,3219.7,0.768]
[1737618126867,3.10565,3220.0,3219.7,0.768]
[1737618127230,3.10565,3220.0,3219.3,6.21241]
[1737618127231,3.10565,3220.0,3219.4,0.7965]
[1737618127747,3.10565,3220.0,3219.5,3.10604]
[1737618130180,3.10573,3219.9,3219.4,0.7965]
[1737618130468,3.496593,3219.9,3219.4,0.7965]
[1737618130668,0.390863,3219.9,3219.1,3.90291]
[1737618130868,3.10598,3219.6,3219.1,0.7965]
[1737618131069,6.21164,3219.8,3219.1,3.90295]
[1737618131271,3.10578,3219.8,3219.1,3.90295]
[1737618131569,3.1059,3219.7,3219.1,3.90295]
[1737618132437,3.1059,3219.7,3219.2,3.10635]
[1737618132845,3.90842,3220.1,3219.4,3.10613]
[1737618133067,0.390842,3220.0,3219.2,3.65631]
[1737618133451,0.390842,3220.0,3219.5,3.10606]
[1737618133649,0.390842,3220.0,3219.6,0.7965]
[1737618133856,3.496432,3220.0,3219.6,0.7965]
[1737618134965,0.390842,3220.0,3219.6,0.7965]
[1737618135375,0.390842,3220.0,3219.3,3.10625]
[1737618135376,0.4299272,3219.9,3219.4,0.7965]
[1737618135753,3.5356172,3219.9,3219.4,0.7965]
[1737618135979,3.5356172,3219.9,3219.2,3.65634]
[1737618136287,3.10587,3219.7,3219.1,3.90293]
[1737618136463,3.10607,3219.5,3219.1,0.7965]
[1737618136780,3.807554,3219.5,3218.9,3.10662]
[1737618137802,3.807554,3219.5,3219.0,3.10655]
[1737618137937,3.807554,3219.5,3218.9,3.10662]
[1737618138139,3.807554,3219.5,3219.0,3.10653]
[1737618138339,3.807554,3219.5,3218.9,3.10658]
[1737618138970,3.807554,3219.5,3219.0,3.10653]
[1737618139174,0.701484,3219.5,3219.0,3.10653]
[1737618139374,0.701484,3219.5,3218.9,3.10658]
[1737618139375,0.8029,3219.6,3219.1,3.10645]